bitfinex/quotes_BTCUSD_20250219
["timestamp","ask_amount","ask_price","bid_price","bid_amount"]
[1739925050896,0.31960508,95640.0,95638.0,0.00030164]
[1739925051340,0.31660508,95640.0,95638.0,0.00030164]
[1739925051804,0.33399832,95640.0,95638.0,0.00030164]
[1739925053129,0.31760508,95640.0,95638.0,0.00030164]
[1739925056140,0.33399813,95640.0,95638.0,0.00030164]
[1739925056614,0.32609202,95640.0,95638.0,0.00030164]
[1739925059857,0.32609202,95640.0,95639.0,0.0786703]
[1739925059858,0.17609202,95640.0,95639.0,0.0786703]
[1739925060313,0.32609202,95640.0,95639.0,0.0786703]
[1739925060794,0.01488474,95640.0,95639.0,0.1254703]
[1739925061276,0.0130247,95640.0,95639.0,0.1254703]
[1739925061506,0.0130247,95640.0,95639.0,0.1274703]
[1739925061732,0.01481327,95640.0,95639.0,0.1254703]
[1739925061953,0.0130247,95640.0,95639.0,0.1294703]
[1739925062407,0.03434605,95640.0,95639.0,0.1294703]
[1739925062654,0.03255744,95640.0,95639.0,0.1294703]
[1739925063116,0.03434599,95640.0,95639.0,0.1294703]
[1739925063361,0.03255744,95640.0,95639.0,0.1294703]
[1739925063599,0.03434673,95640.0,95639.0,0.1294703]
[1739925064070,0.03255744,95640.0,95639.0,0.1294703]
[1739925064298,0.01953274,95640.0,95639.0,0.4540703]
[1739925064987,0.32815996,95640.0,95639.0,0.3287703]
[1739925066640,0.32850056,95640.0,95639.0,0.3247703]
[1739925066870,0.32950056,95640.0,95639.0,0.3247703]
[1739925067102,0.34589207,95640.0,95639.0,0.3247703]
[1739925067579,0.34589207,95640.0,95639.0,0.4004703]
[1739925067858,0.03905407,95640.0,95639.0,0.4480703]
[1739925068319,0.03626485,95640.0,95639.0,0.4480703]
[1739925068534,0.01673211,95640.0,95639.0,0.4490703]
[1739925069243,0.01852167,95640.0,95639.0,0.4490703]
[1739925069461,0.01673211,95640.0,95639.0,0.4490703]
[1739925069899,0.01673211,95640.0,95639.0,0.4480703]
[1739925070121,0.01673211,95640.0,95639.0,0.4530703]
[1739925070338,0.01673211,95640.0,95639.0,0.4480703]
[1739925070557,0.01852137,95640.0,95639.0,0.4530703]
[1739925070778,0.01673211,95640.0,95639.0,0.4530703]
[1739925071230,0.0003406,95665.0,95640.0,0.12055478]
[1739925071446,0.209076,95659.0,95654.0,0.0819]
[1739925071682,0.156813,95655.0,95654.0,0.0819]
[1739925071913,0.1586026,95655.0,95654.0,0.0819]
[1739925072090,0.19456993,95655.0,95654.0,0.0819]
[1739925073194,0.17818121,95655.0,95654.0,0.0819]
[1739925077559,0.19456999,95655.0,95654.0,0.0819]
[1739925078277,0.19491039,95655.0,95654.0,0.0819]
[1739925078457,0.17533178,95655.0,95654.0,0.0819]
[1739925080598,0.19490646,95655.0,95654.0,0.0819]
[1739925082279,0.17533178,95655.0,95654.0,0.0819]
[1739925082500,0.158943,95655.0,95654.0,0.0819]
[1739925083141,0.158943,95655.0,95644.0,0.3246]
[1739925083142,0.15,95650.0,95644.0,0.3246]
[1739925083358,0.156829,95645.0,95644.0,0.3246]
[1739925083817,0.15876825,95645.0,95644.0,0.3246]
[1739925084439,0.30876825,95645.0,95644.0,0.3246]
[1739925084862,0.32835339,95645.0,95644.0,0.3246]
[1739925085511,0.34474446,95645.0,95644.0,0.3246]
[1739925085977,0.19474446,95645.0,95644.0,0.4542]
[1739925086227,0.19474446,95645.0,95644.0,0.4572]
[1739925086444,0.19474446,95645.0,95644.0,0.4542]
[1739925086662,0.19474446,95645.0,95644.0,0.4063]
[1739925087537,0.19474446,95645.0,95644.0,0.4093]
[1739925090420,0.03791546,95645.0,95644.0,0.4093]
[1739925090847,0.19474446,95645.0,95644.0,0.4093]
[1739925091523,0.19474446,95645.0,95644.0,0.4094702]
[1739925093274,0.17835339,95645.0,95644.0,0.4094702]
[1739925094328,0.15876825,95645.0,95644.0,0.4094702]
[1739925096176,0.1751583,95645.0,95644.0,0.4094702]
[1739925096618,0.19477432,95645.0,95644.0,0.4094702]
[1739925103196,0.17838427,95645.0,95644.0,0.4094702]
[1739925107496,0.19477447,95645.0,95644.0,0.4094702]
[1739925109638,0.0003404,95653.0,95644.0,0.4094702]
[1739925109774,0.17507726,95645.0,95644.0,0.4094702]
[1739925110017,0.17321921,95645.0,95644.0,0.4094702]
[1739925110222,0.17507726,95645.0,95644.0,0.4094702]
[1739925111774,0.15868705,95645.0,95644.0,0.4094702]
[1739925119077,0.00185805,95645.0,95644.0,0.4094702]
[1739925119295,0.156826,95647.0,95644.0,0.4094702]
[1739925119509,0.00185787,95646.0,95644.0,0.4094702]
[1739925119936,0.156829,95645.0,95644.0,0.4094702]
[1739925120148,0.15868686,95645.0,95644.0,0.4064702]
[1739925120664,0.15868686,95645.0,95644.0,0.4084702]
[1739925120876,0.15868686,95645.0,95644.0,0.4064702]
[1739925121099,0.00185786,95645.0,95644.0,0.4064702]
[1739925121321,0.00185786,95645.0,95644.0,0.4094702]
[1739925121728,0.01824763,95645.0,95644.0,0.4094702]
[1739925121939,0.17507663,95645.0,95644.0,0.4094702]
[1739925122142,0.01824763,95645.0,95644.0,0.5663012]
[1739925123438,0.00185786,95645.0,95644.0,0.5663012]
[1739925123655,0.156818,95652.0,95646.0,0.156827]
[1739925123880,0.1571574,95653.0,95647.0,0.156825]
[1739925124107,0.00185792,95651.0,95649.0,0.156823]
[1739925124294,0.00185793,95652.0,95649.0,0.156823]
[1739925124599,0.00185793,95652.0,95647.0,0.156825]
[1739925124745,0.0214936,95652.0,95647.0,0.156825]
[1739925125870,0.01963567,95651.0,95647.0,0.156825]
[1739925126112,0.00185792,95650.0,95647.0,0.156825]
[1739925126320,0.00185792,95650.0,95649.0,0.001]
[1739925126741,0.00185792,95650.0,95646.0,0.156828]
[1739925127139,0.00185792,95650.0,95647.0,0.156826]
[1739925127347,0.00185792,95650.0,95646.0,0.232428]
[1739925127576,0.01963567,95649.0,95646.0,0.232428]
[1739925127936,0.00185783,95648.0,95647.0,0.001]
[1739925128143,0.01963567,95649.0,95646.0,0.232428]
[1739925128392,0.01963567,95649.0,95646.0,0.0756]
[1739925128597,0.00185784,95648.0,95646.0,0.232428]
[1739925129028,0.01963567,95648.0,95647.0,0.156826]
[1739925129601,0.01963567,95648.0,95647.0,0.481426]
[1739925130505,0.01963567,95648.0,95647.0,0.483426]
[1739925133207,0.01963567,95648.0,95647.0,0.3266]
[1739925133666,0.00185797,95648.0,95647.0,0.3266]
[1739925133881,0.2094036,95665.0,95647.0,0.3266]
[1739925133882,0.209088,95654.0,95647.0,0.3266]
[1739925134079,0.00185804,95653.0,95647.0,0.3266]
[1739925134285,0.209082,95657.0,95648.0,0.00104538]
[1739925134494,0.00185803,95654.0,95647.0,0.483426]
[1739925134703,0.156816,95653.0,95647.0,0.483426]
[1739925134927,0.001858,95652.0,95647.0,0.481426]
[1739925135146,0.001858,95652.0,95647.0,0.533701]
[1739925135355,0.001858,95652.0,95648.0,0.156824]
[1739925135553,0.01868136,95654.0,95647.0,0.533701]
[1739925135758,0.0003404,95655.0,95648.0,0.156825]
[1739925136006,0.1571544,95655.0,95648.0,0.15787038]
[1739925136232,0.1571544,95655.0,95648.0,0.156825]
[1739925136479,0.00185803,95654.0,95648.0,0.156825]
[1739925136715,0.15867403,95654.0,95647.0,0.481426]
[1739925137545,0.15867403,95654.0,95647.0,0.3246]
[1739925137752,0.15867403,95654.0,95648.0,0.156824]
[1739925137981,0.15867403,95654.0,95647.0,0.3246]
[1739925137982,0.00185803,95654.0,95652.0,0.156818]
[1739925138194,0.00185803,95654.0,95649.0,0.209096]
[1739925138410,0.00185803,95654.0,95649.0,0.156822]
[1739925138622,0.00185803,95654.0,95650.0,0.156821]
[1739925139041,0.00185803,95654.0,95647.0,0.5337]
[1739925139256,0.00185803,95654.0,95649.0,0.156823]
[1739925139464,0.17563936,95655.0,95649.0,0.156823]
[1739925139675,0.00185801,95653.0,95649.0,0.156823]
[1739925139895,0.00185803,95654.0,95649.0,0.156823]
[1739925140104,0.001858,95652.0,95649.0,0.156823]
[1739925140368,0.00185801,95653.0,95649.0,0.156823]
[1739925140589,0.00185798,95651.0,95649.0,0.156823]
[1739925140801,0.0003404,95654.0,95650.0,0.156821]
[1739925141295,0.0003404,95654.0,95647.0,0.5337]
[1739925141511,0.0003404,95654.0,95651.0,0.3246]
[1739925141901,0.0003404,95654.0,95651.0,0.481419]
[1739925143328,0.15,95663.0,95651.0,0.481419]
[1739925143511,0.15,95667.0,95651.0,0.481419]
[1739925143765,0.156809,95658.0,95651.0,0.481419]
[1739925143987,0.01851706,95667.0,95653.0,0.0818]
[1739925144223,0.0484,95684.0,95663.0,0.156799]
[1739925144483,0.01869757,95668.0,95664.0,0.4064]
[1739925144707,0.156789,95670.0,95664.0,0.4034]
[1739925145219,0.156789,95670.0,95664.0,0.4024]
[1739925145464,0.156789,95670.0,95664.0,0.39248]
[1739925146190,0.01899972,95670.0,95664.0,0.39248]
[1739925146680,0.156787,95671.0,95664.0,0.39348]
[1739925146918,0.00185885,95669.0,95664.0,0.39348]
[1739925147136,0.00185887,95670.0,95664.0,0.39348]
[1739925147394,0.00185884,95668.0,95664.0,0.39448]
[1739925147660,0.156788,95671.0,95664.0,0.39248]
[1739925147909,0.156788,95671.0,95664.0,0.39348]
[1739925148113,0.00185887,95670.0,95664.0,0.39348]
[1739925148312,0.00185887,95670.0,95664.0,0.39248]
[1739925148682,0.00185887,95670.0,95664.0,0.549278]
[1739925148934,0.00185887,95670.0,95664.0,0.39248]
[1739925149304,0.156788,95671.0,95664.0,0.39248]
[1739925149628,0.00185887,95670.0,95664.0,0.39248]
[1739925149828,0.00185887,95670.0,95665.0,0.156797]
[1739925150008,0.156786,95672.0,95664.0,0.550278]
[1739925150232,0.00185885,95669.0,95664.0,0.550278]
[1739925150437,0.156786,95672.0,95664.0,0.549278]
[1739925150676,0.156786,95672.0,95665.0,0.156796]
[1739925151083,0.255903,95693.0,95665.0,0.156796]
[1739925151084,0.00185888,95671.0,95668.0,0.156792]
[1739925151592,0.15,95678.0,95671.0,0.156786]
[1739925152077,0.01824543,95677.0,95676.0,0.234279]
[1739925152530,0.01638627,95677.0,95676.0,0.234279]
[1739925152894,0.00043823,95678.0,95677.0,0.156777]
[1739925153909,0.00043823,95678.0,95677.0,0.158777]
[1739925156063,0.01682272,95678.0,95677.0,0.158777]
[1739925156298,0.01682272,95678.0,95677.0,0.483377]
[1739925156947,0.01682272,95678.0,95677.0,0.3266]
[1739925157163,0.01682272,95678.0,95677.0,0.483377]
[1739925158041,0.15,95692.0,95677.0,0.3266]
[1739925158245,0.01638483,95678.0,95677.0,0.535635]
[1739925158629,0.156764,95686.0,95678.0,0.156775]
[1739925158837,0.17546387,95686.0,95678.0,0.156775]
[1739925159083,0.01824428,95685.0,95678.0,0.156775]
[1739925159299,0.01824428,95685.0,95677.0,0.483376]
[1739925159538,0.01824428,95685.0,95678.0,0.156775]
[1739925159897,0.01824428,95685.0,95677.0,0.3246]
[1739925160662,0.01824428,95685.0,95677.0,0.481377]
[1739925161621,0.01824428,95685.0,95677.0,0.3246]
[1739925162032,0.01824428,95685.0,95677.0,0.481377]
[1739925162279,0.01824428,95685.0,95677.0,0.3246]
[1739925163625,0.01824428,95685.0,95677.0,0.3256]
[1739925164378,0.00185965,95685.0,95677.0,0.3256]
[1739925165440,0.15862465,95685.0,95677.0,0.3256]
[1739925165649,0.00185965,95685.0,95677.0,0.3256]
[1739925166621,0.00185965,95685.0,95677.0,0.482376]
[1739925167213,0.01638461,95684.0,95677.0,0.482376]
[1739925167664,0.00185962,95683.0,95677.0,0.3256]
[1739925168066,0.01638461,95684.0,95677.0,0.482377]
[1739925168477,0.00185964,95683.0,95677.0,0.482377]
[1739925168902,0.01638461,95684.0,95677.0,0.3256]
[1739925169107,0.00185959,95682.0,95677.0,0.3246]
[1739925169345,0.00185964,95683.0,95677.0,0.3246]
[1739925169493,0.00185961,95681.0,95677.0,0.3246]
[1739925169692,0.01638461,95684.0,95677.0,0.3256]
[1739925169888,0.00185964,95683.0,95677.0,0.3256]
[1739925170105,0.00185964,95683.0,95677.0,0.3246]
[1739925170484,0.00185964,95683.0,95677.0,0.3266]
[1739925170695,0.00185964,95683.0,95677.0,0.3246]
[1739925171156,0.00185964,95683.0,95677.0,0.3266]
[1739925173459,0.00185964,95683.0,95677.0,0.483377]
[1739925173843,0.00185964,95683.0,95677.0,0.3266]
[1739925175359,0.156775,95678.0,95677.0,0.3266]
[1739925175594,0.306775,95678.0,95677.0,0.3266]
[1739925175814,0.30863541,95678.0,95677.0,0.3266]
[1739925176465,0.30863541,95678.0,95677.0,0.3246]
[1739925176949,0.39155039,95678.0,95677.0,0.002]
[1739925177189,0.15,95677.0,95648.0,0.3246]
[1739925177396,0.306797,95665.0,95648.0,0.3246]
[1739925177843,0.30865631,95665.0,95648.0,0.3246]
[1739925178279,0.32827129,95665.0,95648.0,0.3246]
[1739925178636,0.34466008,95665.0,95648.0,0.3246]
[1739925178836,0.34466008,95665.0,95655.0,0.0779]
[1739925179049,0.35243346,95665.0,95655.0,0.0779]
[1739925180147,0.35243346,95665.0,95664.0,0.0011702]
[1739925180934,0.35243346,95665.0,95664.0,0.0001702]
[1739925181296,0.35243346,95665.0,95664.0,0.0011702]
[1739925182092,0.04563646,95665.0,95664.0,0.0011702]
[1739925182747,0.04563646,95665.0,95664.0,0.0001702]
[1739925182967,0.02924767,95665.0,95664.0,0.0768702]
[1739925183220,0.02924767,95665.0,95664.0,0.15961484]
[1739925183434,0.02738836,95665.0,95664.0,0.15961484]
[1739925183661,0.02738836,95665.0,95664.0,0.16161484]
[1739925183873,0.209006,95691.0,95664.0,0.15961484]
[1739925183874,0.209008,95690.0,95664.0,0.15961484]
[1739925184095,0.0230691,95691.0,95665.0,0.00104519]
[1739925184309,0.00185964,95689.0,95666.0,0.00104519]
[1739925184520,0.209019,95685.0,95666.0,0.00104519]
[1739925184967,0.156797,95665.0,95664.0,0.0001702]
[1739925185409,0.15865668,95665.0,95664.0,0.0001702]
[1739925185842,0.15865668,95665.0,95664.0,0.0051702]
[1739925186304,0.15865668,95665.0,95664.0,0.0001702]
[1739925186485,0.15865668,95665.0,95664.0,0.0011702]
[1739925186898,0.15865668,95665.0,95664.0,0.0001702]
[1739925187238,0.15865668,95665.0,95664.0,0.0011702]
[1739925187545,0.15865668,95665.0,95664.0,0.0001702]
[1739925189515,0.15965668,95665.0,95664.0,0.0001702]
[1739925189762,0.15865668,95665.0,95664.0,0.0001702]
[1739925190021,0.17504394,95665.0,95664.0,0.0001702]
[1739925190209,0.01824694,95665.0,95664.0,0.0816702]
[1739925192039,0.17504394,95665.0,95664.0,0.4062702]
[1739925195483,0.15865668,95665.0,95664.0,0.4062702]
[1739925196850,0.17822743,95665.0,95664.0,0.4062702]
[1739925198767,0.19461447,95665.0,95664.0,0.4062702]
[1739925204539,0.22597443,95665.0,95664.0,0.4062702]
[1739925205638,0.06917743,95665.0,95664.0,0.4062702]
[1739925205864,0.05279039,95665.0,95664.0,0.5630682]
[1739925206296,0.05093071,95665.0,95664.0,0.5630682]
[1739925206528,0.05093071,95665.0,95664.0,0.66557185]
[1739925206959,0.01957075,95665.0,95664.0,0.66357185]
[1739925207170,0.01957075,95665.0,95664.0,0.66657185]
[1739925208036,0.15678,95675.0,95669.0,0.0765]
[1739925208239,0.209034,95678.0,95672.0,0.08374464]
[1739925208451,0.0483,95710.0,95673.0,0.4011]
[1739925208670,0.0003402,95691.0,95679.0,0.156772]
[1739925208871,0.0003402,95691.0,95677.0,0.12048476]
[1739925208872,0.156762,95686.0,95683.0,0.1232]
[1739925209115,0.156764,95685.0,95684.0,0.3246]
[1739925209348,0.0003402,95691.0,95684.0,0.3246]
[1739925209349,0.01638408,95686.0,95684.0,0.3246]
[1739925209555,0.00186044,95685.0,95684.0,0.3246]
[1739925211164,0.00186044,95685.0,95684.0,0.3276]
[1739925214768,0.0003402,95687.0,95684.0,0.3276]
[1739925214981,0.0018609,95685.0,95684.0,0.3276]
[1739925215177,0.0003402,95687.0,95684.0,0.3276]
[1739925215451,0.0018609,95685.0,95684.0,0.3276]
[1739925215646,0.00186091,95686.0,95684.0,0.3276]
[1739925215883,0.0018609,95685.0,95684.0,0.3276]
[1739925216331,0.0003402,95687.0,95684.0,0.3277701]
[1739925216521,0.0018609,95685.0,95684.0,0.3277701]
[1739925216823,0.1571012,95687.0,95684.0,0.3277701]
[1739925217031,0.0003402,95687.0,95685.0,0.236564]
[1739925217244,0.0003402,95687.0,95686.0,0.0798]
[1739925217452,0.0003402,95687.0,95686.0,0.9501]
[1739925218672,0.01672173,95687.0,95686.0,0.9501]
[1739925218882,0.01672173,95687.0,95686.0,1.106862]
[1739925219917,0.01672173,95687.0,95686.0,1.111862]
[1739925229398,0.0003402,95687.0,95686.0,1.111862]
[1739925231150,0.0003402,95687.0,95686.0,0.9551]
[1739925231151,0.1571012,95687.0,95686.0,0.9551]
[1739925231383,0.1589633,95687.0,95686.0,0.8753]
[1739925232526,0.1589633,95687.0,95686.0,0.8703]
[1739925232729,0.17534591,95687.0,95686.0,0.8703]
[1739925232931,0.17534591,95687.0,95686.0,0.8733]
[1739925233139,0.1589633,95687.0,95686.0,0.8703]
[1739925233395,0.1589633,95687.0,95686.0,0.3286]
[1739925233834,0.1589633,95687.0,95686.0,0.3246]
[1739925234035,0.1589633,95687.0,95686.0,0.3286]
[1739925236424,0.1589633,95687.0,95686.0,0.3246]
[1739925236648,0.1589633,95687.0,95686.0,0.3286]
[1739925237064,0.2093472,95691.0,95686.0,0.3286]
[1739925237266,0.15854579,95687.0,95686.0,0.3286]
[1739925237496,0.156761,95687.0,95686.0,0.3286]
[1739925237708,0.15854579,95687.0,95686.0,0.3286]
[1739925237928,0.15854579,95687.0,95686.0,0.3246]
[1739925238532,0.16627828,95687.0,95686.0,0.3276]
[1739925239439,0.16627828,95687.0,95686.0,0.3277702]
[1739925240321,0.15854579,95687.0,95686.0,0.3247702]
[1739925240543,0.15854579,95687.0,95686.0,0.3287702]
[1739925240763,0.15854579,95687.0,95686.0,0.3247702]
[1739925241280,0.15854579,95687.0,95686.0,0.3287702]
[1739925241971,0.00178479,95687.0,95686.0,0.3287702]
[1739925242200,0.01816741,95687.0,95686.0,0.3287702]
[1739925242433,0.01638262,95687.0,95686.0,0.3287702]
[1739925242642,0.01816742,95687.0,95686.0,0.3287702]
[1739925242849,0.01638262,95687.0,95686.0,0.3287702]
[1739925243061,0.0003402,95691.0,95686.0,0.6139322]
[1739925243245,0.0003402,95691.0,95690.0,0.156756]
[1739925243507,0.0003402,95691.0,95688.0,0.156758]
[1739925243735,0.0003402,95691.0,95687.0,0.238661]
[1739925244148,0.0003402,95691.0,95687.0,0.0819]
[1739925244365,0.1570942,95691.0,95687.0,0.0819]
[1739925244799,0.00178459,95690.0,95687.0,0.0819]
[1739925245004,0.00178459,95690.0,95688.0,0.003]
[1739925245389,0.0003402,95691.0,95689.0,0.3246]
[1739925245806,0.00178456,95690.0,95689.0,0.3246]
[1739925246272,0.0003402,95691.0,95689.0,0.3246]
[1739925246699,0.0003402,95691.0,95690.0,0.232156]
[1739925247783,0.01672099,95691.0,95690.0,0.232156]
[1739925248700,0.01672099,95691.0,95690.0,0.65925965]
[1739925248904,0.01672099,95691.0,95690.0,0.66225965]
[1739925250726,0.01672099,95691.0,95690.0,0.42345236]
[1739925250936,0.01672099,95691.0,95690.0,0.58020836]
[1739925251149,0.01672099,95691.0,95690.0,0.559756]
[1739925252153,0.01672099,95691.0,95690.0,0.556756]
[1739925253574,0.0003402,95691.0,95690.0,0.556756]
[1739925254059,0.0003402,95691.0,95690.0,0.559756]
[1739925254277,0.0003402,95691.0,95690.0,0.403]
[1739925254722,0.00248234,95691.0,95690.0,0.559756]
[1739925255561,0.0003402,95691.0,95690.0,0.403]
[1739925255964,0.00248233,95691.0,95690.0,0.559756]
[1739925256238,0.0003402,95691.0,95690.0,0.559756]
[1739925256420,0.01672171,95691.0,95690.0,0.559756]
[1739925257332,0.01672171,95691.0,95690.0,0.403]
[1739925257535,0.01886387,95691.0,95690.0,0.403]
[1739925260175,0.01886387,95691.0,95690.0,0.559756]
[1739925260659,0.01672171,95691.0,95690.0,0.559756]
[1739925261069,0.01886388,95691.0,95690.0,0.559756]
[1739925261506,0.01672171,95691.0,95690.0,0.559756]
[1739925263129,0.0003402,95691.0,95690.0,0.559756]
[1739925263979,0.16559157,95699.0,95690.0,0.559756]
[1739925264242,0.15,95704.0,95690.0,0.40313144]
[1739925264454,0.00214232,95698.0,95697.0,0.156744]
[1739925264635,0.00214235,95700.0,95697.0,0.232444]
[1739925264834,0.00214235,95700.0,95699.0,0.156741]
[1739925266106,0.03006664,95705.0,95700.0,0.156739]
[1739925266285,0.156726,95708.0,95700.0,0.286139]
[1739925266869,0.306723,95710.0,95700.0,0.286139]
[1739925267089,0.15,95710.0,95700.0,0.286139]
[1739925267332,0.156725,95709.0,95700.0,0.286139]
[1739925267644,0.02936936,95705.0,95700.0,0.286139]
[1739925267833,0.01672065,95701.0,95700.0,0.286139]
[1739925270506,0.01672065,95701.0,95700.0,0.36988364]
[1739925271925,0.01672065,95701.0,95700.0,0.37488364]
[1739925272149,0.01672065,95701.0,95700.0,0.69948364]
[1739925273112,0.0003404,95701.0,95700.0,0.69948364]
[1739925274112,0.0003404,95701.0,95700.0,0.615739]
[1739925274355,0.0003404,95701.0,95700.0,0.4096]
[1739925274797,0.0003404,95701.0,95700.0,0.566339]
[1739925275976,0.0003404,95701.0,95700.0,0.4096]
[1739925276232,0.01672071,95701.0,95700.0,0.4096]
[1739925283231,0.01672071,95701.0,95700.0,0.566339]
[1739925283479,0.0003404,95701.0,95700.0,0.566339]
[1739925286520,0.01672026,95701.0,95700.0,0.566339]
[1739925291344,0.208951,95716.0,95700.0,0.618586]
[1739925291559,0.208944,95720.0,95700.0,0.566339]
[1739925291560,0.01637995,95701.0,95700.0,0.566339]
[1739925291791,0.156719,95713.0,95700.0,0.4096]
[1739925292064,0.156719,95713.0,95705.0,0.15673]
[1739925292410,0.00214274,95712.0,95705.0,0.15673]
[1739925293100,0.00214274,95712.0,95700.0,0.4046]
[1739925293101,0.156716,95714.0,95700.0,0.4046]
[1739925293335,0.00214269,95711.0,95700.0,0.4046]
[1739925293561,0.00214272,95713.0,95700.0,0.4046]
[1739925293785,0.00214289,95710.0,95700.0,0.4046]
[1739925294018,0.00214293,95712.0,95705.0,0.15673]
[1739925294251,0.02608224,95714.0,95701.0,0.208984]
[1739925294430,0.00214291,95711.0,95700.0,0.4046]
[1739925294714,0.00214294,95713.0,95700.0,0.48557157]
[1739925294920,0.156718,95714.0,95706.0,0.156729]
[1739925295119,0.00214284,95712.0,95706.0,0.156729]
[1739925295349,0.156717,95714.0,95706.0,0.156729]
[1739925295552,0.00214282,95711.0,95706.0,0.156729]
[1739925295758,0.1820133,95714.0,95706.0,0.156729]
[1739925295960,0.0021428,95710.0,95707.0,0.3246]
[1739925296200,0.0252963,95714.0,95707.0,0.3246]
[1739925296372,0.00214279,95709.0,95708.0,0.156725]
[1739925296582,0.156715,95715.0,95708.0,0.156725]
[1739925296791,0.156717,95714.0,95707.0,0.481327]
[1739925296995,0.156719,95713.0,95707.0,0.3246]
[1739925297406,0.00214282,95712.0,95707.0,0.3246]
[1739925298105,0.00214282,95712.0,95707.0,0.3276]
[1739925298363,0.00214282,95712.0,95707.0,0.3246]
[1739925298609,0.156717,95714.0,95707.0,0.3246]
[1739925298815,0.00214284,95711.0,95707.0,0.3246]
[1739925299015,0.0003404,95713.0,95707.0,0.3246]
[1739925299232,0.00214276,95710.0,95707.0,0.3286]
[1739925299438,0.15672,95712.0,95707.0,0.3286]
[1739925299645,0.00214274,95709.0,95707.0,0.3286]
[1739925299850,0.15672,95712.0,95707.0,0.3286]
[1739925300058,0.00214272,95708.0,95707.0,0.3286]
[1739925300282,0.0003404,95713.0,95707.0,0.3286]
[1739925300494,0.00214272,95708.0,95707.0,0.3246]
[1739925300702,0.0003404,95713.0,95707.0,0.3276]
[1739925300906,0.00214277,95712.0,95707.0,0.481327]
[1739925301032,0.0003404,95713.0,95707.0,0.481327]
[1739925301237,0.00214284,95712.0,95707.0,0.3296]
[1739925301478,0.00214284,95712.0,95707.0,0.3246]
[1739925301851,0.00214284,95712.0,95708.0,0.156726]
[1739925301852,0.01637948,95711.0,95708.0,0.156726]
[1739925302072,0.00214269,95710.0,95707.0,0.3246]
[1739925302317,0.00214269,95710.0,95707.0,0.481327]
[1739925302514,0.00214269,95710.0,95707.0,0.481328]
[1739925302742,0.00214269,95710.0,95707.0,0.3246]
[1739925302894,0.00214269,95710.0,95707.0,0.481326]
[1739925303298,0.00214269,95710.0,95708.0,0.156726]
[1739925303592,0.0003404,95713.0,95708.0,0.156726]
[1739925303798,0.00214281,95709.0,95708.0,0.156726]
[1739925304019,0.0003404,95713.0,95708.0,0.156726]
[1739925304380,0.00214286,95712.0,95707.0,0.3246]
[1739925304820,0.00214286,95712.0,95708.0,0.004]
[1739925305022,0.00214286,95712.0,95708.0,0.156726]
[1739925305209,0.00214286,95712.0,95708.0,0.159726]
[1739925305627,0.00214286,95712.0,95711.0,0.156721]
[1739925305841,0.00214286,95712.0,95711.0,0.23446569]
[1739925306076,0.0003404,95713.0,95712.0,0.15672]
[1739925306279,0.0003404,95713.0,95712.0,0.23342]
[1739925306489,0.0003404,95713.0,95712.0,0.55802]
[1739925306698,0.01671757,95713.0,95712.0,0.55802]
[1739925307114,0.01671757,95713.0,95712.0,0.60612]
[1739925307563,0.01671757,95713.0,95712.0,0.71562365]
[1739925307788,0.0003406,95736.0,95712.0,0.71562365]
[1739925308002,0.0003406,95736.0,95729.0,0.0832]
[1739925308372,0.00204011,95735.0,95732.0,0.156686]
[1739925308562,0.01637508,95735.0,95730.0,0.481289]
[1739925309247,0.01637508,95735.0,95731.0,0.156688]
[1739925309455,0.01637508,95735.0,95732.0,0.156686]
[1739925309641,0.01637508,95735.0,95731.0,0.156688]
[1739925310869,0.01671548,95735.0,95731.0,0.157688]
[1739925311381,0.01671548,95735.0,95731.0,0.001]
[1739925312196,0.01671548,95735.0,95732.0,0.156687]
[1739925313065,0.00204108,95734.0,95732.0,0.156687]
[1739925313265,0.00204108,95734.0,95731.0,0.156688]
[1739925313495,0.0003404,95735.0,95731.0,0.156688]
[1739925313719,0.0003404,95735.0,95732.0,0.002]
[1739925314169,0.0020411,95734.0,95732.0,0.002]
[1739925314347,0.0020411,95734.0,95731.0,0.156688]
[1739925314496,0.0003404,95735.0,95731.0,0.156688]
[1739925314697,0.0020411,95734.0,95732.0,0.156687]
[1739925314911,0.0003404,95735.0,95732.0,0.156687]
[1739925316138,0.01671558,95735.0,95732.0,0.158687]
[1739925316554,0.00204112,95734.0,95732.0,0.156687]
[1739925316752,0.00204112,95734.0,95732.0,0.159687]
[1739925317592,0.00204112,95734.0,95732.0,0.156687]
[1739925318006,0.00204112,95734.0,95732.0,0.159687]
[1739925319744,0.00204112,95734.0,95732.0,0.156687]
[1739925319950,0.00204112,95734.0,95732.0,0.160687]
[1739925320168,0.00204112,95734.0,95732.0,0.156687]
[1739925320568,0.00204112,95734.0,95732.0,0.160687]
[1739925320979,0.00204112,95734.0,95733.0,0.156685]
[1739925322267,0.0003404,95735.0,95733.0,0.156685]
[1739925322960,0.0003404,95735.0,95734.0,0.156684]
[1739925323360,0.0003404,95735.0,95734.0,0.236884]
[1739925324347,0.0003404,95735.0,95734.0,0.71118765]
[1739925325903,0.0003404,95735.0,95734.0,0.71518765]
[1739925326261,0.0003404,95735.0,95734.0,0.71118765]
[1739925326475,0.0003404,95735.0,95734.0,0.71818765]
[1739925326693,0.0003404,95735.0,95734.0,0.71118765]
[1739925327093,0.0003404,95735.0,95734.0,0.71818765]
[1739925327288,0.0003404,95735.0,95734.0,0.74118765]
[1739925327542,0.0003404,95735.0,95734.0,1.30688765]
[1739925327945,0.0003404,95735.0,95734.0,1.45688765]
[1739925331471,0.0003404,95735.0,95734.0,1.43688765]
[1739925331705,0.0003404,95735.0,95734.0,1.4647884]
[1739925331908,0.01671129,95735.0,95734.0,1.4647884]
[1739925332170,0.18587068,95769.0,95736.0,0.0804]
[1739925332419,0.15,95779.0,95760.0,0.0804]
[1739925332648,0.0180722,95768.0,95762.0,0.156636]
[1739925332875,0.01637087,95768.0,95763.0,0.3246]
[1739925333095,0.00170172,95767.0,95763.0,0.3246]
[1739925333307,0.00170172,95767.0,95766.0,0.156631]
[1739925333515,0.00013156,95769.0,95766.0,0.156631]
[1739925334394,0.00013156,95769.0,95764.0,0.156634]
[1739925334524,0.00013156,95769.0,95766.0,0.156631]
[1739925334734,0.00013156,95769.0,95767.0,0.156629]
[1739925334933,0.00170157,95768.0,95766.0,0.003]
[1739925335233,0.00013156,95769.0,95766.0,0.003]
[1739925335400,0.00013156,95769.0,95767.0,0.15663]